Workbook

Sheet Таблица1
H1: 40 | I1: 41 | J1: 42
A2: ТАБЛИЦА 1
B3: код изд | E3: код детали | I3: =SUMPRODUCT(E4:E77,I4:I77) -> 30.6426
A4: =IF(J4=0,"Изделие не выбрано",(SUM(J$4:J4))) -> 1 | B4: 101 | C4: Изделие 1 | D4: =IF(H4=1,A4+I4,0) -> 0 | E4: =IF(B4="",E3+0.01,B4+0.01) -> 101.01 | F4: Деталь 1 | H4: =IF(G4=".",1,0) -> 0 | I4: =IF(H4=1,0.01,0) -> 0 | J4: =IF(SUM(H4:H8)>0,1,0) -> 1
D5: =IF(H5=1,A4+SUM(I4:I5),0) -> 1.01 | E5: 101.02 | F5: Деталь 2 | G5: . | H5: 1 | I5: 0.01
D6: =IF(H6=1,A4+SUM(I4:I6),0) -> 1.02 | E6: 101.03 | F6: Деталь 3 | G6: . | H6: 1 | I6: 0.01
D7: =IF(H7=1,A4+SUM(I4:I7),0) -> 1.03 | E7: 101.04 | F7: Деталь 4 | G7: . | H7: 1 | I7: 0.01
D8: =IF(H8=1,A4+SUM(I4:I8),0) -> 1.04 | E8: 101.05 | F8: Деталь 5 | G8: . | H8: 1 | I8: 0.01
A9: =IF(J9=0,"Изделие не выбрано",(SUM(J$4:J9))) -> 2 | B9: =B4+1 -> 102 | C9: Изделие 2 | D9: =IF(H9=1,A9+I9,0) -> 2.01 | E9: 102.01 | F9: Деталь 6 | G9: . | H9: 1 | I9: 0.01 | J9: =IF(SUM(H9:H18)>0,1,0) -> 1
D10: =IF(H10=1,A9+SUM(I9:I10),0) -> 0 | E10: 102.02 | F10: Деталь 7 | H10: 0 | I10: 0
D11: =IF(H11=1,A9+SUM(I9:I11),0) -> 0 | E11: 102.03 | F11: Деталь 8 | H11: 0 | I11: 0
D12: =IF(H12=1,A9+SUM(I9:I12),0) -> 0 | E12: 102.04 | F12: Деталь 9 | H12: 0 | I12: 0
D13: =IF(H13=1,A9+SUM(I9:I13),0) -> 0 | E13: 102.05 | F13: Деталь 10 | H13: 0 | I13: 0
D14: =IF(H14=1,A9+SUM(I9:I14),0) -> 0 | E14: 102.06 | F14: Деталь 11 | H14: 0 | I14: 0
D15: =IF(H15=1,A9+SUM(I9:I15),0) -> 2.02 | E15: 102.07 | F15: Деталь 12 | G15: . | H15: 1 | I15: 0.01
D16: =IF(H16=1,A9+SUM(I9:I16),0) -> 2.03 | E16: 102.08 | F16: Деталь 13 | G16: . | H16: 1 | I16: 0.01
D17: =IF(H17=1,A9+SUM(I9:I17),0) -> 2.04 | E17: 102.09 | F17: Деталь 14 | G17: . | H17: 1 | I17: 0.01
D18: =IF(H18=1,A9+SUM(I9:I18),0) -> 2.05 | E18: 102.1 | F18: Деталь 15 | G18: . | H18: 1 | I18: 0.01
A19: =IF(J19=0,"Изделие не выбрано",(SUM(J$4:J19))) -> 3 | B19: =B9+1 -> 103 | C19: Изделие 3 | D19: =IF(H19=1,A19+I19,0) -> 0 | E19: 103.01 | F19: Деталь 16 | H19: 0 | I19: 0 | J19: =IF(SUM(H19:H27)>0,1,0) -> 1
D20: =IF(H20=1,A19+SUM(I19:I20),0) -> 0 | E20: 103.02 | F20: Деталь 17 | H20: 0 | I20: 0
D21: =IF(H21=1,A19+SUM(I19:I21),0) -> 0 | E21: 103.03 | F21: Деталь 18 | H21: 0 | I21: 0
D22: =IF(H22=1,A19+SUM(I19:I22),0) -> 0 | E22: 103.04 | F22: Деталь 19 | H22: 0 | I22: 0
D23: =IF(H23=1,A19+SUM(I19:I23),0) -> 0 | E23: 103.05 | F23: Деталь 20 | H23: 0 | I23: 0
D24: =IF(H24=1,A19+SUM(I19:I24),0) -> 0 | E24: 103.06 | F24: Деталь 21 | H24: 0 | I24: 0
D25: =IF(H25=1,A19+SUM(I19:I25),0) -> 0 | E25: 103.07 | F25: Деталь 22 | H25: 0 | I25: 0
D26: =IF(H26=1,A19+SUM(I19:I26),0) -> 3.01 | E26: 103.08 | F26: Деталь 23 | G26: . | H26: 1 | I26: 0.01
D27: =IF(H27=1,A19+SUM(I19:I27),0) -> 3.02 | E27: 103.09 | F27: Деталь 24 | G27: . | H27: 1 | I27: 0.01
A28: =IF(J28=0,"Изделие не выбрано",(SUM(J$4:J28))) -> Изделие не выбрано | B28: =B19+1 -> 104 | C28: изделие 4 | D28: =IF(H28=1,A28+I28,0) -> 0 | E28: 104.01 | F28: Деталь 25 | H28: 0 | I28: 0 | J28: =IF(SUM(H28:H35)>0,1,0) -> 0
D29: =IF(H29=1,A28+SUM(I28:I29),0) -> 0 | E29: 104.02 | F29: Деталь 26 | H29: 0 | I29: 0
D30: =IF(H30=1,A28+SUM(I28:I30),0) -> 0 | E30: 104.03 | F30: Деталь 27 | H30: 0 | I30: 0
D31: =IF(H31=1,A28+SUM(I28:I31),0) -> 0 | E31: 104.04 | F31: Деталь 28 | H31: 0 | I31: 0
D32: =IF(H32=1,A28+SUM(I28:I32),0) -> 0 | E32: 104.05 | F32: Деталь 29 | H32: 0 | I32: 0
D33: =IF(H33=1,A28+SUM(I28:I33),0) -> 0 | E33: 104.06 | F33: Деталь 30 | H33: 0 | I33: 0
D34: =IF(H34=1,A28+SUM(I28:I34),0) -> 0 | E34: 104.07 | F34: Деталь 31 | H34: 0 | I34: 0
D35: =IF(H35=1,A28+SUM(I28:I35),0) -> 0 | E35: 104.08 | F35: Деталь 32 | H35: 0 | I35: 0
A36: =IF(J36=0,"Изделие не выбрано",(SUM(J$4:J36))) -> Изделие не выбрано | B36: =B28+1 -> 105 | C36: Изделие 5 | D36: =IF(H36=1,A36+I36,0) -> 0 | E36: =IF(B36="",E35+0.01,B36+0.01) -> 105.01 | F36: Деталь 33 | H36: =IF(G36=".",1,0) -> 0 | I36: =IF(H36=1,0.01,0) -> 0 | J36: =IF(SUM(H36:H45)>0,1,0) -> 0
D37: =IF(H37=1,A36+SUM(I36:I37),0) -> 0 | E37: 105.02 | F37: Деталь 34 | H37: 0 | I37: 0
D38: =IF(H38=1,A36+SUM(I36:I38),0) -> 0 | E38: 105.03 | F38: Деталь 35 | H38: 0 | I38: 0
D39: =IF(H39=1,A36+SUM(I36:I39),0) -> 0 | E39: 105.04 | F39: Деталь 36 | H39: 0 | I39: 0
D40: =IF(H40=1,A36+SUM(I36:I40),0) -> 0 | E40: 105.05 | F40: Деталь 37 | H40: 0 | I40: 0
D41: =IF(H41=1,A36+SUM(I36:I41),0) -> 0 | E41: 105.06 | F41: Деталь 38 | H41: 0 | I41: 0
D42: =IF(H42=1,A36+SUM(I36:I42),0) -> 0 | E42: 105.07 | F42: Деталь 39 | H42: 0 | I42: 0
D43: =IF(H43=1,A36+SUM(I36:I43),0) -> 0 | E43: 105.08 | F43: Деталь 40 | H43: 0 | I43: 0
D44: =IF(H44=1,A36+SUM(I36:I44),0) -> 0 | E44: 105.09 | F44: Деталь 41 | H44: 0 | I44: 0
D45: =IF(H45=1,A36+SUM(I36:I45),0) -> 0 | E45: 105.1 | F45: Деталь 42 | H45: 0 | I45: 0
A46: =IF(J46=0,"Изделие не выбрано",(SUM(J$4:J46))) -> 4 | B46: =B36+1 -> 106 | C46: Изделие 6 | D46: =IF(H46=1,A46+I46,0) -> 4.01 | E46: 106.01 | F46: Деталь 43 | G46: . | H46: 1 | I46: 0.01 | J46: =IF(SUM(H46:H53)>0,1,0) -> 1
D47: =IF(H47=1,A46+SUM(I46:I47),0) -> 4.02 | E47: 106.02 | F47: Деталь 44 | G47: . | H47: 1 | I47: 0.01
D48: =IF(H48=1,A46+SUM(I46:I48),0) -> 0 | E48: 106.03 | F48: Деталь 45 | H48: 0 | I48: 0
D49: =IF(H49=1,A46+SUM(I46:I49),0) -> 4.03 | E49: 106.04 | F49: Деталь 46 | G49: . | H49: 1 | I49: 0.01
D50: =IF(H50=1,A46+SUM(I46:I50),0) -> 4.04 | E50: 106.05 | F50: Деталь 47 | G50: . | H50: 1 | I50: 0.01
D51: =IF(H51=1,A46+SUM(I46:I51),0) -> 4.05 | E51: 106.06 | F51: Деталь 48 | G51: . | H51: 1 | I51: 0.01
D52: =IF(H52=1,A46+SUM(I46:I52),0) -> 0 | E52: 106.07 | F52: Деталь 49 | H52: 0 | I52: 0
D53: =IF(H53=1,A46+SUM(I46:I53),0) -> 0 | E53: 106.08 | F53: Деталь 50 | H53: 0 | I53: 0
A54: =IF(J54=0,"Изделие не выбрано",(SUM(J$4:J54))) -> 5 | B54: =B46+1 -> 107 | C54: Изделие 7 | D54: =IF(H54=1,A54+I54,0) -> 0 | E54: 107.01 | F54: Деталь 51 | H54: 0 | I54: 0 | J54: =IF(SUM(H54:H60)>0,1,0) -> 1
D55: =IF(H55=1,A54+SUM(I54:I55),0) -> 0 | E55: 107.02 | F55: Деталь 52 | H55: 0 | I55: 0
D56: =IF(H56=1,A54+SUM(I54:I56),0) -> 0 | E56: 107.03 | F56: Деталь 53 | H56: 0 | I56: 0
D57: =IF(H57=1,A54+SUM(I54:I57),0) -> 5.01 | E57: 107.04 | F57: Деталь 54 | G57: . | H57: 1 | I57: 0.01
D58: =IF(H58=1,A54+SUM(I54:I58),0) -> 5.02 | E58: 107.05 | F58: Деталь 55 | G58: . | H58: 1 | I58: 0.01
D59: =IF(H59=1,A54+SUM(I54:I59),0) -> 0 | E59: 107.06 | F59: Деталь 56 | H59: 0 | I59: 0
D60: =IF(H60=1,A54+SUM(I54:I60),0) -> 5.03 | E60: 107.07 | F60: Деталь 57 | G60: . | H60: 1 | I60: 0.01
A61: =IF(J61=0,"Изделие не выбрано",(SUM(J$4:J61))) -> 6 | B61: =B54+1 -> 108 | C61: Изделие 8 | D61: =IF(H61=1,A61+I61,0) -> 6.01 | E61: 108.01 | F61: Деталь 58 | G61: . | H61: 1 | I61: 0.01 | J61: =IF(SUM(H61:H66)>0,1,0) -> 1
D62: =IF(H62=1,A61+SUM(I61:I62),0) -> 0 | E62: 108.02 | F62: Деталь 59 | H62: 0 | I62: 0
D63: =IF(H63=1,A61+SUM(I61:I63),0) -> 6.02 | E63: 108.03 | F63: Деталь 60 | G63: . | H63: 1 | I63: 0.01
D64: =IF(H64=1,A61+SUM(I61:I64),0) -> 6.03 | E64: 108.04 | F64: Деталь 61 | G64: . | H64: 1 | I64: 0.01
D65: =IF(H65=1,A61+SUM(I61:I65),0) -> 0 | E65: 108.05 | F65: Деталь 62 | H65: 0 | I65: 0
D66: =IF(H66=1,A61+SUM(I61:I66),0) -> 0 | E66: 108.06 | F66: Деталь 63 | H66: 0 | I66: 0
A67: =IF(J67=0,"Изделие не выбрано",(SUM(J$4:J67))) -> 7 | B67: =B61+1 -> 109 | C67: Изделие 9 | D67: =IF(H67=1,A67+I67,0) -> 7.01 | E67: 109.01 | F67: Деталь 64 | G67: . | H67: 1 | I67: 0.01 | J67: =IF(SUM(H67:H72)>0,1,0) -> 1
D68: =IF(H68=1,A67+SUM(I67:I68),0) -> 7.02 | E68: =IF(B68="",E67+0.01,B68+0.01) -> 109.02 | F68: Деталь 65 | G68: . | H68: =IF(G68=".",1,0) -> 1 | I68: =IF(H68=1,0.01,0) -> 0.01
D69: =IF(H69=1,A67+SUM(I67:I69),0) -> 0 | E69: 109.03 | F69: Деталь 66 | H69: 0 | I69: 0
D70: =IF(H70=1,A67+SUM(I67:I70),0) -> 0 | E70: 109.04 | F70: Деталь 67 | H70: 0 | I70: 0
D71: =IF(H71=1,A67+SUM(I67:I71),0) -> 0 | E71: 109.05 | F71: Деталь 68 | H71: 0 | I71: 0
D72: =IF(H72=1,A67+SUM(I67:I72),0) -> 0 | E72: 109.06 | F72: Деталь 69 | H72: 0 | I72: 0
A73: =IF(J73=0,"Изделие не выбрано",(SUM(J$4:J73))) -> 8 | B73: =B67+1 -> 110 | C73: Изделие 10 | D73: =IF(H73=1,A73+I73,0) -> 8.01 | E73: 110.01 | F73: Деталь 70 | G73: . | H73: 1 | I73: 0.01 | J73: =IF(SUM(H73:H77)>0,1,0) -> 1
D74: =IF(H74=1,A73+SUM(I73:I74),0) -> 8.02 | E74: 110.02 | F74: Деталь 71 | G74: . | H74: 1 | I74: 0.01
D75: =IF(H75=1,A73+SUM(I73:I75),0) -> 8.03 | E75: 110.03 | F75: Деталь 72 | G75: . | H75: 1 | I75: 0.01
D76: =IF(H76=1,A73+SUM(I73:I76),0) -> 8.04 | E76: 110.04 | F76: Деталь 73 | G76: . | H76: 1 | I76: 0.01
D77: =IF(H77=1,A73+SUM(I73:I77),0) -> 8.05 | E77: 110.05 | F77: Деталь 74 | G77: . | H77: 1 | I77: 0.01

Sheet таблица2
A1: 1 | B1: 2 | C1: 3 | D1: 4 | E1: 5 | F1: 6 | G1: 7 | H1: 8 | I1: 9 | J1: 10 | K1: 11 | L1: 12 | M1: 13 | N1: 14 | O1: 15 | P1: 16 | Q1: 17 | R1: 18 | S1: 19 | T1: 20 | U1: 21 | V1: 22 | W1: 23 | X1: 24 | Y1: 25 | Z1: 26 | AA1: 27 | AB1: 28 | AC1: 29 | AD1: 30 | AE1: 31 | AF1: 32 | AG1: 33 | AH1: 34 | AI1: 35 | AJ1: 36
B2: ТАБЛИЦА 2
A4: количество, шт | D4: Наименование изделия | H4: Состав изделия | AC4: цвет деталей
AC5: 1 | AD5: 2 | AE5: 3 | AF5: 4 | AH5: =SUM(AH6:AH105) -> 32
A6: 20 | B6: 1 | C6: =IF(ISNA(VLOOKUP(B6,Таблица1!$A$4:$B$77,2,FALSE)),"",(VLOOKUP(B6,Таблица1!$A$4:$B$77,2,FALSE))) -> 101 | D6: =IF(ISNA(VLOOKUP(B6,Таблица1!$A$4:$C$77,3,FALSE)),"",(VLOOKUP(B6,Таблица1!$A$4:$C$77,3,FALSE))) -> Изделие 1 | G6: 1.01 | H6: =IF(ISNA(VLOOKUP(AG6,Таблица1!$E$4:$F$77,2,FALSE)),"",(VLOOKUP(AG6,Таблица1!$E$4:$F$77,2,FALSE))) -> Деталь 2 | AD6: . | AG6: =IF(ISNA(VLOOKUP(G6,Таблица1!$D$4:$F$77,2,FALSE)),"",(VLOOKUP(G6,Таблица1!$D$4:$F$77,2,FALSE))) -> 101.02 | AH6: =(AC6=".")*1+(AD6=".")*2+(AE6=".")*3+(AF6=".")*4 -> 2 | AI6: =IF(AG6="","",IF(A6="",AI5,A6)) -> 20
G7: 1.02 | H7: =IF(ISNA(VLOOKUP(AG7,Таблица1!$E$4:$F$77,2,FALSE)),"",(VLOOKUP(AG7,Таблица1!$E$4:$F$77,2,FALSE))) -> Деталь 3 | AE7: . | AG7: =IF(ISNA(VLOOKUP(G7,Таблица1!$D$4:$F$77,2,FALSE)),"",(VLOOKUP(G7,Таблица1!$D$4:$F$77,2,FALSE))) -> 101.03 | AH7: =(AC7=".")*1+(AD7=".")*2+(AE7=".")*3+(AF7=".")*4 -> 3 | AI7: 20
G8: 1.03 | H8: =IF(ISNA(VLOOKUP(AG8,Таблица1!$E$4:$F$77,2,FALSE)),"",(VLOOKUP(AG8,Таблица1!$E$4:$F$77,2,FALSE))) -> Деталь 4 | AF8: . | AG8: =IF(ISNA(VLOOKUP(G8,Таблица1!$D$4:$F$77,2,FALSE)),"",(VLOOKUP(G8,Таблица1!$D$4:$F$77,2,FALSE))) -> 101.04 | AH8: 4 | AI8: 20
G9: 1.04 | H9: =IF(ISNA(VLOOKUP(AG9,Таблица1!$E$4:$F$77,2,FALSE)),"",(VLOOKUP(AG9,Таблица1!$E$4:$F$77,2,FALSE))) -> Деталь 5 | AG9: =IF(ISNA(VLOOKUP(G9,Таблица1!$D$4:$F$77,2,FALSE)),"",(VLOOKUP(G9,Таблица1!$D$4:$F$77,2,FALSE))) -> 101.05 | AH9: 0 | AI9: 20
G10: 1.05 | H10: =IF(ISNA(VLOOKUP(AG10,Таблица1!$E$4:$F$77,2,FALSE)),"",(VLOOKUP(AG10,Таблица1!$E$4:$F$77,2,FALSE))) ->  | AG10: =IF(ISNA(VLOOKUP(G10,Таблица1!$D$4:$F$77,2,FALSE)),"",(VLOOKUP(G10,Таблица1!$D$4:$F$77,2,FALSE))) ->  | AH10: 0
G11: 1.06 | H11: =IF(ISNA(VLOOKUP(AG11,Таблица1!$E$4:$F$77,2,FALSE)),"",(VLOOKUP(AG11,Таблица1!$E$4:$F$77,2,FALSE))) ->  | AG11: =IF(ISNA(VLOOKUP(G11,Таблица1!$D$4:$F$77,2,FALSE)),"",(VLOOKUP(G11,Таблица1!$D$4:$F$77,2,FALSE))) ->  | AH11: 0 | AL11: .
G12: 1.07 | H12: =IF(ISNA(VLOOKUP(AG12,Таблица1!$E$4:$F$77,2,FALSE)),"",(VLOOKUP(AG12,Таблица1!$E$4:$F$77,2,FALSE))) ->  | AG12: =IF(ISNA(VLOOKUP(G12,Таблица1!$D$4:$F$77,2,FALSE)),"",(VLOOKUP(G12,Таблица1!$D$4:$F$77,2,FALSE))) ->  | AH12: 0
G13: 1.08 | H13: =IF(ISNA(VLOOKUP(AG13,Таблица1!$E$4:$F$77,2,FALSE)),"",(VLOOKUP(AG13,Таблица1!$E$4:$F$77,2,FALSE))) ->  | AG13: =IF(ISNA(VLOOKUP(G13,Таблица1!$D$4:$F$77,2,FALSE)),"",(VLOOKUP(G13,Таблица1!$D$4:$F$77,2,FALSE))) ->  | AH13: 0
G14: 1.09 | H14: =IF(ISNA(VLOOKUP(AG14,Таблица1!$E$4:$F$77,2,FALSE)),"",(VLOOKUP(AG14,Таблица1!$E$4:$F$77,2,FALSE))) ->  | AG14: =IF(ISNA(VLOOKUP(G14,Таблица1!$D$4:$F$77,2,FALSE)),"",(VLOOKUP(G14,Таблица1!$D$4:$F$77,2,FALSE))) ->  | AH14: 0
G15: 1.1 | H15: =IF(ISNA(VLOOKUP(AG15,Таблица1!$E$4:$F$77,2,FALSE)),"",(VLOOKUP(AG15,Таблица1!$E$4:$F$77,2,FALSE))) ->  | AG15: =IF(ISNA(VLOOKUP(G15,Таблица1!$D$4:$F$77,2,FALSE)),"",(VLOOKUP(G15,Таблица1!$D$4:$F$77,2,FALSE))) ->  | AH15: 0
A16: 30 | B16: 2 | C16: =IF(ISNA(VLOOKUP(B16,Таблица1!$A$4:$B$77,2,FALSE)),"",(VLOOKUP(B16,Таблица1!$A$4:$B$77,2,FALSE))) -> 102 | D16: =IF(ISNA(VLOOKUP(B16,Таблица1!$A$4:$C$77,3,FALSE)),"",(VLOOKUP(B16,Таблица1!$A$4:$C$77,3,FALSE))) -> Изделие 2 | G16: 2.01 | H16: =IF(ISNA(VLOOKUP(AG16,Таблица1!$E$4:$F$77,2,FALSE)),"",(VLOOKUP(AG16,Таблица1!$E$4:$F$77,2,FALSE))) -> Деталь 6 | AG16: =IF(ISNA(VLOOKUP(G16,Таблица1!$D$4:$F$77,2,FALSE)),"",(VLOOKUP(G16,Таблица1!$D$4:$F$77,2,FALSE))) -> 102.01 | AH16: 0 | AI16: 30
G17: 2.02 | H17: =IF(ISNA(VLOOKUP(AG17,Таблица1!$E$4:$F$77,2,FALSE)),"",(VLOOKUP(AG17,Таблица1!$E$4:$F$77,2,FALSE))) -> Деталь 12 | AD17: . | AG17: =IF(ISNA(VLOOKUP(G17,Таблица1!$D$4:$F$77,2,FALSE)),"",(VLOOKUP(G17,Таблица1!$D$4:$F$77,2,FALSE))) -> 102.07 | AH17: 2 | AI17: 30
G18: 2.03 | H18: =IF(ISNA(VLOOKUP(AG18,Таблица1!$E$4:$F$77,2,FALSE)),"",(VLOOKUP(AG18,Таблица1!$E$4:$F$77,2,FALSE))) -> Деталь 13 | AE18: . | AG18: =IF(ISNA(VLOOKUP(G18,Таблица1!$D$4:$F$77,2,FALSE)),"",(VLOOKUP(G18,Таблица1!$D$4:$F$77,2,FALSE))) -> 102.08 | AH18: 3 | AI18: 30
G19: 2.04 | H19: =IF(ISNA(VLOOKUP(AG19,Таблица1!$E$4:$F$77,2,FALSE)),"",(VLOOKUP(AG19,Таблица1!$E$4:$F$77,2,FALSE))) -> Деталь 14 | AD19: . | AG19: =IF(ISNA(VLOOKUP(G19,Таблица1!$D$4:$F$77,2,FALSE)),"",(VLOOKUP(G19,Таблица1!$D$4:$F$77,2,FALSE))) -> 102.09 | AH19: 2 | AI19: 30
G20: 2.05 | H20: =IF(ISNA(VLOOKUP(AG20,Таблица1!$E$4:$F$77,2,FALSE)),"",(VLOOKUP(AG20,Таблица1!$E$4:$F$77,2,FALSE))) -> Деталь 15 | AC20: . | AG20: =IF(ISNA(VLOOKUP(G20,Таблица1!$D$4:$F$77,2,FALSE)),"",(VLOOKUP(G20,Таблица1!$D$4:$F$77,2,FALSE))) -> 102.1 | AH20: 1 | AI20: 30
G21: 2.06 | H21: =IF(ISNA(VLOOKUP(AG21,Таблица1!$E$4:$F$77,2,FALSE)),"",(VLOOKUP(AG21,Таблица1!$E$4:$F$77,2,FALSE))) ->  | AG21: =IF(ISNA(VLOOKUP(G21,Таблица1!$D$4:$F$77,2,FALSE)),"",(VLOOKUP(G21,Таблица1!$D$4:$F$77,2,FALSE))) ->  | AH21: 0
G22: 2.07 | H22: =IF(ISNA(VLOOKUP(AG22,Таблица1!$E$4:$F$77,2,FALSE)),"",(VLOOKUP(AG22,Таблица1!$E$4:$F$77,2,FALSE))) ->  | AG22: =IF(ISNA(VLOOKUP(G22,Таблица1!$D$4:$F$77,2,FALSE)),"",(VLOOKUP(G22,Таблица1!$D$4:$F$77,2,FALSE))) ->  | AH22: 0
G23: 2.08 | H23: =IF(ISNA(VLOOKUP(AG23,Таблица1!$E$4:$F$77,2,FALSE)),"",(VLOOKUP(AG23,Таблица1!$E$4:$F$77,2,FALSE))) ->  | AG23: =IF(ISNA(VLOOKUP(G23,Таблица1!$D$4:$F$77,2,FALSE)),"",(VLOOKUP(G23,Таблица1!$D$4:$F$77,2,FALSE))) ->  | AH23: 0
G24: 2.09 | H24: =IF(ISNA(VLOOKUP(AG24,Таблица1!$E$4:$F$77,2,FALSE)),"",(VLOOKUP(AG24,Таблица1!$E$4:$F$77,2,FALSE))) ->  | AG24: =IF(ISNA(VLOOKUP(G24,Таблица1!$D$4:$F$77,2,FALSE)),"",(VLOOKUP(G24,Таблица1!$D$4:$F$77,2,FALSE))) ->  | AH24: 0
G25: 2.1 | H25: =IF(ISNA(VLOOKUP(AG25,Таблица1!$E$4:$F$77,2,FALSE)),"",(VLOOKUP(AG25,Таблица1!$E$4:$F$77,2,FALSE))) ->  | AG25: =IF(ISNA(VLOOKUP(G25,Таблица1!$D$4:$F$77,2,FALSE)),"",(VLOOKUP(G25,Таблица1!$D$4:$F$77,2,FALSE))) ->  | AH25: 0
A26: 500 | B26: 3 | C26: =IF(ISNA(VLOOKUP(B26,Таблица1!$A$4:$B$77,2,FALSE)),"",(VLOOKUP(B26,Таблица1!$A$4:$B$77,2,FALSE))) -> 103 | D26: =IF(ISNA(VLOOKUP(B26,Таблица1!$A$4:$C$77,3,FALSE)),"",(VLOOKUP(B26,Таблица1!$A$4:$C$77,3,FALSE))) -> Изделие 3 | G26: 3.01 | H26: =IF(ISNA(VLOOKUP(AG26,Таблица1!$E$4:$F$77,2,FALSE)),"",(VLOOKUP(AG26,Таблица1!$E$4:$F$77,2,FALSE))) -> Деталь 23 | AE26: . | AG26: =IF(ISNA(VLOOKUP(G26,Таблица1!$D$4:$F$77,2,FALSE)),"",(VLOOKUP(G26,Таблица1!$D$4:$F$77,2,FALSE))) -> 103.08 | AH26: 3 | AI26: 500
G27: 3.02 | H27: =IF(ISNA(VLOOKUP(AG27,Таблица1!$E$4:$F$77,2,FALSE)),"",(VLOOKUP(AG27,Таблица1!$E$4:$F$77,2,FALSE))) -> Деталь 24 | AF27: . | AG27: =IF(ISNA(VLOOKUP(G27,Таблица1!$D$4:$F$77,2,FALSE)),"",(VLOOKUP(G27,Таблица1!$D$4:$F$77,2,FALSE))) -> 103.09 | AH27: 4 | AI27: 500
G28: 3.03 | H28: =IF(ISNA(VLOOKUP(AG28,Таблица1!$E$4:$F$77,2,FALSE)),"",(VLOOKUP(AG28,Таблица1!$E$4:$F$77,2,FALSE))) ->  | AG28: =IF(ISNA(VLOOKUP(G28,Таблица1!$D$4:$F$77,2,FALSE)),"",(VLOOKUP(G28,Таблица1!$D$4:$F$77,2,FALSE))) ->  | AH28: 0
G29: 3.04 | H29: =IF(ISNA(VLOOKUP(AG29,Таблица1!$E$4:$F$77,2,FALSE)),"",(VLOOKUP(AG29,Таблица1!$E$4:$F$77,2,FALSE))) ->  | AG29: =IF(ISNA(VLOOKUP(G29,Таблица1!$D$4:$F$77,2,FALSE)),"",(VLOOKUP(G29,Таблица1!$D$4:$F$77,2,FALSE))) ->  | AH29: 0
G30: 3.05 | H30: =IF(ISNA(VLOOKUP(AG30,Таблица1!$E$4:$F$77,2,FALSE)),"",(VLOOKUP(AG30,Таблица1!$E$4:$F$77,2,FALSE))) ->  | AG30: =IF(ISNA(VLOOKUP(G30,Таблица1!$D$4:$F$77,2,FALSE)),"",(VLOOKUP(G30,Таблица1!$D$4:$F$77,2,FALSE))) ->  | AH30: 0
G31: 3.06 | H31: =IF(ISNA(VLOOKUP(AG31,Таблица1!$E$4:$F$77,2,FALSE)),"",(VLOOKUP(AG31,Таблица1!$E$4:$F$77,2,FALSE))) ->  | AG31: =IF(ISNA(VLOOKUP(G31,Таблица1!$D$4:$F$77,2,FALSE)),"",(VLOOKUP(G31,Таблица1!$D$4:$F$77,2,FALSE))) ->  | AH31: 0
G32: 3.07 | H32: =IF(ISNA(VLOOKUP(AG32,Таблица1!$E$4:$F$77,2,FALSE)),"",(VLOOKUP(AG32,Таблица1!$E$4:$F$77,2,FALSE))) ->  | AG32: =IF(ISNA(VLOOKUP(G32,Таблица1!$D$4:$F$77,2,FALSE)),"",(VLOOKUP(G32,Таблица1!$D$4:$F$77,2,FALSE))) ->  | AH32: 0
G33: 3.08 | H33: =IF(ISNA(VLOOKUP(AG33,Таблица1!$E$4:$F$77,2,FALSE)),"",(VLOOKUP(AG33,Таблица1!$E$4:$F$77,2,FALSE))) ->  | AG33: =IF(ISNA(VLOOKUP(G33,Таблица1!$D$4:$F$77,2,FALSE)),"",(VLOOKUP(G33,Таблица1!$D$4:$F$77,2,FALSE))) ->  | AH33: 0
G34: 3.09 | H34: =IF(ISNA(VLOOKUP(AG34,Таблица1!$E$4:$F$77,2,FALSE)),"",(VLOOKUP(AG34,Таблица1!$E$4:$F$77,2,FALSE))) ->  | AG34: =IF(ISNA(VLOOKUP(G34,Таблица1!$D$4:$F$77,2,FALSE)),"",(VLOOKUP(G34,Таблица1!$D$4:$F$77,2,FALSE))) ->  | AH34: 0
G35: 3.1 | H35: =IF(ISNA(VLOOKUP(AG35,Таблица1!$E$4:$F$77,2,FALSE)),"",(VLOOKUP(AG35,Таблица1!$E$4:$F$77,2,FALSE))) ->  | AG35: =IF(ISNA(VLOOKUP(G35,Таблица1!$D$4:$F$77,2,FALSE)),"",(VLOOKUP(G35,Таблица1!$D$4:$F$77,2,FALSE))) ->  | AH35: 0
B36: 4 | C36: =IF(ISNA(VLOOKUP(B36,Таблица1!$A$4:$B$77,2,FALSE)),"",(VLOOKUP(B36,Таблица1!$A$4:$B$77,2,FALSE))) -> 106 | D36: =IF(ISNA(VLOOKUP(B36,Таблица1!$A$4:$C$77,3,FALSE)),"",(VLOOKUP(B36,Таблица1!$A$4:$C$77,3,FALSE))) -> Изделие 6 | G36: 4.01 | H36: =IF(ISNA(VLOOKUP(AG36,Таблица1!$E$4:$F$77,2,FALSE)),"",(VLOOKUP(AG36,Таблица1!$E$4:$F$77,2,FALSE))) -> Деталь 43 | AG36: =IF(ISNA(VLOOKUP(G36,Таблица1!$D$4:$F$77,2,FALSE)),"",(VLOOKUP(G36,Таблица1!$D$4:$F$77,2,FALSE))) -> 106.01 | AH36: 0
G37: 4.02 | H37: =IF(ISNA(VLOOKUP(AG37,Таблица1!$E$4:$F$77,2,FALSE)),"",(VLOOKUP(AG37,Таблица1!$E$4:$F$77,2,FALSE))) -> Деталь 44 | AG37: =IF(ISNA(VLOOKUP(G37,Таблица1!$D$4:$F$77,2,FALSE)),"",(VLOOKUP(G37,Таблица1!$D$4:$F$77,2,FALSE))) -> 106.02 | AH37: 0
G38: 4.03 | H38: =IF(ISNA(VLOOKUP(AG38,Таблица1!$E$4:$F$77,2,FALSE)),"",(VLOOKUP(AG38,Таблица1!$E$4:$F$77,2,FALSE))) -> Деталь 46 | AG38: =IF(ISNA(VLOOKUP(G38,Таблица1!$D$4:$F$77,2,FALSE)),"",(VLOOKUP(G38,Таблица1!$D$4:$F$77,2,FALSE))) -> 106.04 | AH38: 0 | AI38: =IF(AG38="","",IF(A38="",AI37,A38)) -> 
G39: 4.04 | H39: =IF(ISNA(VLOOKUP(AG39,Таблица1!$E$4:$F$77,2,FALSE)),"",(VLOOKUP(AG39,Таблица1!$E$4:$F$77,2,FALSE))) -> Деталь 47 | AG39: =IF(ISNA(VLOOKUP(G39,Таблица1!$D$4:$F$77,2,FALSE)),"",(VLOOKUP(G39,Таблица1!$D$4:$F$77,2,FALSE))) -> 106.05 | AH39: 0
G40: 4.05 | H40: =IF(ISNA(VLOOKUP(AG40,Таблица1!$E$4:$F$77,2,FALSE)),"",(VLOOKUP(AG40,Таблица1!$E$4:$F$77,2,FALSE))) -> Деталь 48 | AG40: =IF(ISNA(VLOOKUP(G40,Таблица1!$D$4:$F$77,2,FALSE)),"",(VLOOKUP(G40,Таблица1!$D$4:$F$77,2,FALSE))) -> 106.06 | AH40: 0
G41: 4.06 | H41: =IF(ISNA(VLOOKUP(AG41,Таблица1!$E$4:$F$77,2,FALSE)),"",(VLOOKUP(AG41,Таблица1!$E$4:$F$77,2,FALSE))) ->  | AG41: =IF(ISNA(VLOOKUP(G41,Таблица1!$D$4:$F$77,2,FALSE)),"",(VLOOKUP(G41,Таблица1!$D$4:$F$77,2,FALSE))) ->  | AH41: 0
G42: 4.07 | H42: =IF(ISNA(VLOOKUP(AG42,Таблица1!$E$4:$F$77,2,FALSE)),"",(VLOOKUP(AG42,Таблица1!$E$4:$F$77,2,FALSE))) ->  | AG42: =IF(ISNA(VLOOKUP(G42,Таблица1!$D$4:$F$77,2,FALSE)),"",(VLOOKUP(G42,Таблица1!$D$4:$F$77,2,FALSE))) ->  | AH42: 0
G43: 4.08 | H43: =IF(ISNA(VLOOKUP(AG43,Таблица1!$E$4:$F$77,2,FALSE)),"",(VLOOKUP(AG43,Таблица1!$E$4:$F$77,2,FALSE))) ->  | AG43: =IF(ISNA(VLOOKUP(G43,Таблица1!$D$4:$F$77,2,FALSE)),"",(VLOOKUP(G43,Таблица1!$D$4:$F$77,2,FALSE))) ->  | AH43: 0
G44: 4.09 | H44: =IF(ISNA(VLOOKUP(AG44,Таблица1!$E$4:$F$77,2,FALSE)),"",(VLOOKUP(AG44,Таблица1!$E$4:$F$77,2,FALSE))) ->  | AG44: =IF(ISNA(VLOOKUP(G44,Таблица1!$D$4:$F$77,2,FALSE)),"",(VLOOKUP(G44,Таблица1!$D$4:$F$77,2,FALSE))) ->  | AH44: 0
G45: 4.1 | H45: =IF(ISNA(VLOOKUP(AG45,Таблица1!$E$4:$F$77,2,FALSE)),"",(VLOOKUP(AG45,Таблица1!$E$4:$F$77,2,FALSE))) ->  | AG45: =IF(ISNA(VLOOKUP(G45,Таблица1!$D$4:$F$77,2,FALSE)),"",(VLOOKUP(G45,Таблица1!$D$4:$F$77,2,FALSE))) ->  | AH45: 0
B46: 5 | C46: =IF(ISNA(VLOOKUP(B46,Таблица1!$A$4:$B$77,2,FALSE)),"",(VLOOKUP(B46,Таблица1!$A$4:$B$77,2,FALSE))) -> 107 | D46: =IF(ISNA(VLOOKUP(B46,Таблица1!$A$4:$C$77,3,FALSE)),"",(VLOOKUP(B46,Таблица1!$A$4:$C$77,3,FALSE))) -> Изделие 7 | G46: 5.01 | H46: =IF(ISNA(VLOOKUP(AG46,Таблица1!$E$4:$F$77,2,FALSE)),"",(VLOOKUP(AG46,Таблица1!$E$4:$F$77,2,FALSE))) -> Деталь 54 | AG46: =IF(ISNA(VLOOKUP(G46,Таблица1!$D$4:$F$77,2,FALSE)),"",(VLOOKUP(G46,Таблица1!$D$4:$F$77,2,FALSE))) -> 107.04 | AH46: 0
G47: 5.02 | H47: =IF(ISNA(VLOOKUP(AG47,Таблица1!$E$4:$F$77,2,FALSE)),"",(VLOOKUP(AG47,Таблица1!$E$4:$F$77,2,FALSE))) -> Деталь 55 | AG47: =IF(ISNA(VLOOKUP(G47,Таблица1!$D$4:$F$77,2,FALSE)),"",(VLOOKUP(G47,Таблица1!$D$4:$F$77,2,FALSE))) -> 107.05 | AH47: 0
G48: 5.03 | H48: =IF(ISNA(VLOOKUP(AG48,Таблица1!$E$4:$F$77,2,FALSE)),"",(VLOOKUP(AG48,Таблица1!$E$4:$F$77,2,FALSE))) -> Деталь 57 | AG48: =IF(ISNA(VLOOKUP(G48,Таблица1!$D$4:$F$77,2,FALSE)),"",(VLOOKUP(G48,Таблица1!$D$4:$F$77,2,FALSE))) -> 107.07 | AH48: 0
G49: 5.04 | H49: =IF(ISNA(VLOOKUP(AG49,Таблица1!$E$4:$F$77,2,FALSE)),"",(VLOOKUP(AG49,Таблица1!$E$4:$F$77,2,FALSE))) ->  | AG49: =IF(ISNA(VLOOKUP(G49,Таблица1!$D$4:$F$77,2,FALSE)),"",(VLOOKUP(G49,Таблица1!$D$4:$F$77,2,FALSE))) ->  | AH49: 0
G50: 5.05 | H50: =IF(ISNA(VLOOKUP(AG50,Таблица1!$E$4:$F$77,2,FALSE)),"",(VLOOKUP(AG50,Таблица1!$E$4:$F$77,2,FALSE))) ->  | AG50: =IF(ISNA(VLOOKUP(G50,Таблица1!$D$4:$F$77,2,FALSE)),"",(VLOOKUP(G50,Таблица1!$D$4:$F$77,2,FALSE))) ->  | AH50: 0
G51: 5.06 | H51: =IF(ISNA(VLOOKUP(AG51,Таблица1!$E$4:$F$77,2,FALSE)),"",(VLOOKUP(AG51,Таблица1!$E$4:$F$77,2,FALSE))) ->  | AG51: =IF(ISNA(VLOOKUP(G51,Таблица1!$D$4:$F$77,2,FALSE)),"",(VLOOKUP(G51,Таблица1!$D$4:$F$77,2,FALSE))) ->  | AH51: 0
G52: 5.07 | H52: =IF(ISNA(VLOOKUP(AG52,Таблица1!$E$4:$F$77,2,FALSE)),"",(VLOOKUP(AG52,Таблица1!$E$4:$F$77,2,FALSE))) ->  | AG52: =IF(ISNA(VLOOKUP(G52,Таблица1!$D$4:$F$77,2,FALSE)),"",(VLOOKUP(G52,Таблица1!$D$4:$F$77,2,FALSE))) ->  | AH52: 0
G53: 5.08 | H53: =IF(ISNA(VLOOKUP(AG53,Таблица1!$E$4:$F$77,2,FALSE)),"",(VLOOKUP(AG53,Таблица1!$E$4:$F$77,2,FALSE))) ->  | AG53: =IF(ISNA(VLOOKUP(G53,Таблица1!$D$4:$F$77,2,FALSE)),"",(VLOOKUP(G53,Таблица1!$D$4:$F$77,2,FALSE))) ->  | AH53: 0
G54: 5.09 | H54: =IF(ISNA(VLOOKUP(AG54,Таблица1!$E$4:$F$77,2,FALSE)),"",(VLOOKUP(AG54,Таблица1!$E$4:$F$77,2,FALSE))) ->  | AG54: =IF(ISNA(VLOOKUP(G54,Таблица1!$D$4:$F$77,2,FALSE)),"",(VLOOKUP(G54,Таблица1!$D$4:$F$77,2,FALSE))) ->  | AH54: 0
G55: 5.1 | H55: =IF(ISNA(VLOOKUP(AG55,Таблица1!$E$4:$F$77,2,FALSE)),"",(VLOOKUP(AG55,Таблица1!$E$4:$F$77,2,FALSE))) ->  | AG55: =IF(ISNA(VLOOKUP(G55,Таблица1!$D$4:$F$77,2,FALSE)),"",(VLOOKUP(G55,Таблица1!$D$4:$F$77,2,FALSE))) ->  | AH55: 0
B56: 6 | C56: =IF(ISNA(VLOOKUP(B56,Таблица1!$A$4:$B$77,2,FALSE)),"",(VLOOKUP(B56,Таблица1!$A$4:$B$77,2,FALSE))) -> 108 | D56: =IF(ISNA(VLOOKUP(B56,Таблица1!$A$4:$C$77,3,FALSE)),"",(VLOOKUP(B56,Таблица1!$A$4:$C$77,3,FALSE))) -> Изделие 8 | G56: 6.01 | H56: =IF(ISNA(VLOOKUP(AG56,Таблица1!$E$4:$F$77,2,FALSE)),"",(VLOOKUP(AG56,Таблица1!$E$4:$F$77,2,FALSE))) -> Деталь 58 | AG56: =IF(ISNA(VLOOKUP(G56,Таблица1!$D$4:$F$77,2,FALSE)),"",(VLOOKUP(G56,Таблица1!$D$4:$F$77,2,FALSE))) -> 108.01 | AH56: 0
G57: 6.02 | H57: =IF(ISNA(VLOOKUP(AG57,Таблица1!$E$4:$F$77,2,FALSE)),"",(VLOOKUP(AG57,Таблица1!$E$4:$F$77,2,FALSE))) -> Деталь 60 | AG57: =IF(ISNA(VLOOKUP(G57,Таблица1!$D$4:$F$77,2,FALSE)),"",(VLOOKUP(G57,Таблица1!$D$4:$F$77,2,FALSE))) -> 108.03 | AH57: 0
G58: 6.03 | H58: =IF(ISNA(VLOOKUP(AG58,Таблица1!$E$4:$F$77,2,FALSE)),"",(VLOOKUP(AG58,Таблица1!$E$4:$F$77,2,FALSE))) -> Деталь 61 | AG58: =IF(ISNA(VLOOKUP(G58,Таблица1!$D$4:$F$77,2,FALSE)),"",(VLOOKUP(G58,Таблица1!$D$4:$F$77,2,FALSE))) -> 108.04 | AH58: 0
G59: 6.04 | H59: =IF(ISNA(VLOOKUP(AG59,Таблица1!$E$4:$F$77,2,FALSE)),"",(VLOOKUP(AG59,Таблица1!$E$4:$F$77,2,FALSE))) ->  | AG59: =IF(ISNA(VLOOKUP(G59,Таблица1!$D$4:$F$77,2,FALSE)),"",(VLOOKUP(G59,Таблица1!$D$4:$F$77,2,FALSE))) ->  | AH59: 0
G60: 6.05 | H60: =IF(ISNA(VLOOKUP(AG60,Таблица1!$E$4:$F$77,2,FALSE)),"",(VLOOKUP(AG60,Таблица1!$E$4:$F$77,2,FALSE))) ->  | AG60: =IF(ISNA(VLOOKUP(G60,Таблица1!$D$4:$F$77,2,FALSE)),"",(VLOOKUP(G60,Таблица1!$D$4:$F$77,2,FALSE))) ->  | AH60: 0
G61: 6.06 | H61: =IF(ISNA(VLOOKUP(AG61,Таблица1!$E$4:$F$77,2,FALSE)),"",(VLOOKUP(AG61,Таблица1!$E$4:$F$77,2,FALSE))) ->  | AG61: =IF(ISNA(VLOOKUP(G61,Таблица1!$D$4:$F$77,2,FALSE)),"",(VLOOKUP(G61,Таблица1!$D$4:$F$77,2,FALSE))) ->  | AH61: 0
G62: 6.07 | H62: =IF(ISNA(VLOOKUP(AG62,Таблица1!$E$4:$F$77,2,FALSE)),"",(VLOOKUP(AG62,Таблица1!$E$4:$F$77,2,FALSE))) ->  | AG62: =IF(ISNA(VLOOKUP(G62,Таблица1!$D$4:$F$77,2,FALSE)),"",(VLOOKUP(G62,Таблица1!$D$4:$F$77,2,FALSE))) ->  | AH62: 0
G63: 6.08 | H63: =IF(ISNA(VLOOKUP(AG63,Таблица1!$E$4:$F$77,2,FALSE)),"",(VLOOKUP(AG63,Таблица1!$E$4:$F$77,2,FALSE))) ->  | AG63: =IF(ISNA(VLOOKUP(G63,Таблица1!$D$4:$F$77,2,FALSE)),"",(VLOOKUP(G63,Таблица1!$D$4:$F$77,2,FALSE))) ->  | AH63: 0
G64: 6.09 | H64: =IF(ISNA(VLOOKUP(AG64,Таблица1!$E$4:$F$77,2,FALSE)),"",(VLOOKUP(AG64,Таблица1!$E$4:$F$77,2,FALSE))) ->  | AG64: =IF(ISNA(VLOOKUP(G64,Таблица1!$D$4:$F$77,2,FALSE)),"",(VLOOKUP(G64,Таблица1!$D$4:$F$77,2,FALSE))) ->  | AH64: 0
G65: 6.1 | H65: =IF(ISNA(VLOOKUP(AG65,Таблица1!$E$4:$F$77,2,FALSE)),"",(VLOOKUP(AG65,Таблица1!$E$4:$F$77,2,FALSE))) ->  | AG65: =IF(ISNA(VLOOKUP(G65,Таблица1!$D$4:$F$77,2,FALSE)),"",(VLOOKUP(G65,Таблица1!$D$4:$F$77,2,FALSE))) ->  | AH65: 0
B66: 7 | C66: =IF(ISNA(VLOOKUP(B66,Таблица1!$A$4:$B$77,2,FALSE)),"",(VLOOKUP(B66,Таблица1!$A$4:$B$77,2,FALSE))) -> 109 | D66: =IF(ISNA(VLOOKUP(B66,Таблица1!$A$4:$C$77,3,FALSE)),"",(VLOOKUP(B66,Таблица1!$A$4:$C$77,3,FALSE))) -> Изделие 9 | G66: 7.01 | H66: =IF(ISNA(VLOOKUP(AG66,Таблица1!$E$4:$F$77,2,FALSE)),"",(VLOOKUP(AG66,Таблица1!$E$4:$F$77,2,FALSE))) -> Деталь 64 | AG66: =IF(ISNA(VLOOKUP(G66,Таблица1!$D$4:$F$77,2,FALSE)),"",(VLOOKUP(G66,Таблица1!$D$4:$F$77,2,FALSE))) -> 109.01 | AH66: 0
G67: 7.02 | H67: =IF(ISNA(VLOOKUP(AG67,Таблица1!$E$4:$F$77,2,FALSE)),"",(VLOOKUP(AG67,Таблица1!$E$4:$F$77,2,FALSE))) -> Деталь 65 | AG67: =IF(ISNA(VLOOKUP(G67,Таблица1!$D$4:$F$77,2,FALSE)),"",(VLOOKUP(G67,Таблица1!$D$4:$F$77,2,FALSE))) -> 109.02 | AH67: 0
G68: 7.03 | H68: =IF(ISNA(VLOOKUP(AG68,Таблица1!$E$4:$F$77,2,FALSE)),"",(VLOOKUP(AG68,Таблица1!$E$4:$F$77,2,FALSE))) ->  | AG68: =IF(ISNA(VLOOKUP(G68,Таблица1!$D$4:$F$77,2,FALSE)),"",(VLOOKUP(G68,Таблица1!$D$4:$F$77,2,FALSE))) ->  | AH68: 0
G69: 7.04 | H69: =IF(ISNA(VLOOKUP(AG69,Таблица1!$E$4:$F$77,2,FALSE)),"",(VLOOKUP(AG69,Таблица1!$E$4:$F$77,2,FALSE))) ->  | AG69: =IF(ISNA(VLOOKUP(G69,Таблица1!$D$4:$F$77,2,FALSE)),"",(VLOOKUP(G69,Таблица1!$D$4:$F$77,2,FALSE))) ->  | AH69: 0
G70: 7.05 | H70: =IF(ISNA(VLOOKUP(AG70,Таблица1!$E$4:$F$77,2,FALSE)),"",(VLOOKUP(AG70,Таблица1!$E$4:$F$77,2,FALSE))) ->  | AG70: =IF(ISNA(VLOOKUP(G70,Таблица1!$D$4:$F$77,2,FALSE)),"",(VLOOKUP(G70,Таблица1!$D$4:$F$77,2,FALSE))) ->  | AH70: 0 | AI70: =IF(AG70="","",IF(A70="",AI69,A70)) -> 
G71: 7.06 | H71: =IF(ISNA(VLOOKUP(AG71,Таблица1!$E$4:$F$77,2,FALSE)),"",(VLOOKUP(AG71,Таблица1!$E$4:$F$77,2,FALSE))) ->  | AG71: =IF(ISNA(VLOOKUP(G71,Таблица1!$D$4:$F$77,2,FALSE)),"",(VLOOKUP(G71,Таблица1!$D$4:$F$77,2,FALSE))) ->  | AH71: =(AC71=".")*1+(AD71=".")*2+(AE71=".")*3+(AF71=".")*4 -> 0
G72: 7.07 | H72: =IF(ISNA(VLOOKUP(AG72,Таблица1!$E$4:$F$77,2,FALSE)),"",(VLOOKUP(AG72,Таблица1!$E$4:$F$77,2,FALSE))) ->  | AG72: =IF(ISNA(VLOOKUP(G72,Таблица1!$D$4:$F$77,2,FALSE)),"",(VLOOKUP(G72,Таблица1!$D$4:$F$77,2,FALSE))) ->  | AH72: 0
G73: 7.08 | H73: =IF(ISNA(VLOOKUP(AG73,Таблица1!$E$4:$F$77,2,FALSE)),"",(VLOOKUP(AG73,Таблица1!$E$4:$F$77,2,FALSE))) ->  | AG73: =IF(ISNA(VLOOKUP(G73,Таблица1!$D$4:$F$77,2,FALSE)),"",(VLOOKUP(G73,Таблица1!$D$4:$F$77,2,FALSE))) ->  | AH73: 0
G74: 7.09 | H74: =IF(ISNA(VLOOKUP(AG74,Таблица1!$E$4:$F$77,2,FALSE)),"",(VLOOKUP(AG74,Таблица1!$E$4:$F$77,2,FALSE))) ->  | AG74: =IF(ISNA(VLOOKUP(G74,Таблица1!$D$4:$F$77,2,FALSE)),"",(VLOOKUP(G74,Таблица1!$D$4:$F$77,2,FALSE))) ->  | AH74: 0
G75: 7.1 | H75: =IF(ISNA(VLOOKUP(AG75,Таблица1!$E$4:$F$77,2,FALSE)),"",(VLOOKUP(AG75,Таблица1!$E$4:$F$77,2,FALSE))) ->  | AG75: =IF(ISNA(VLOOKUP(G75,Таблица1!$D$4:$F$77,2,FALSE)),"",(VLOOKUP(G75,Таблица1!$D$4:$F$77,2,FALSE))) ->  | AH75: 0
A76: 101010 | B76: 8 | C76: =IF(ISNA(VLOOKUP(B76,Таблица1!$A$4:$B$77,2,FALSE)),"",(VLOOKUP(B76,Таблица1!$A$4:$B$77,2,FALSE))) -> 110 | D76: =IF(ISNA(VLOOKUP(B76,Таблица1!$A$4:$C$77,3,FALSE)),"",(VLOOKUP(B76,Таблица1!$A$4:$C$77,3,FALSE))) -> Изделие 10 | G76: 8.01 | H76: =IF(ISNA(VLOOKUP(AG76,Таблица1!$E$4:$F$77,2,FALSE)),"",(VLOOKUP(AG76,Таблица1!$E$4:$F$77,2,FALSE))) -> Деталь 70 | AC76: . | AG76: =IF(ISNA(VLOOKUP(G76,Таблица1!$D$4:$F$77,2,FALSE)),"",(VLOOKUP(G76,Таблица1!$D$4:$F$77,2,FALSE))) -> 110.01 | AH76: 1 | AI76: 101010
G77: 8.02 | H77: =IF(ISNA(VLOOKUP(AG77,Таблица1!$E$4:$F$77,2,FALSE)),"",(VLOOKUP(AG77,Таблица1!$E$4:$F$77,2,FALSE))) -> Деталь 71 | AE77: . | AG77: =IF(ISNA(VLOOKUP(G77,Таблица1!$D$4:$F$77,2,FALSE)),"",(VLOOKUP(G77,Таблица1!$D$4:$F$77,2,FALSE))) -> 110.02 | AH77: 3 | AI77: 101010
G78: 8.03 | H78: =IF(ISNA(VLOOKUP(AG78,Таблица1!$E$4:$F$77,2,FALSE)),"",(VLOOKUP(AG78,Таблица1!$E$4:$F$77,2,FALSE))) -> Деталь 72 | AD78: . | AG78: =IF(ISNA(VLOOKUP(G78,Таблица1!$D$4:$F$77,2,FALSE)),"",(VLOOKUP(G78,Таблица1!$D$4:$F$77,2,FALSE))) -> 110.03 | AH78: 2 | AI78: 101010
G79: 8.04 | H79: =IF(ISNA(VLOOKUP(AG79,Таблица1!$E$4:$F$77,2,FALSE)),"",(VLOOKUP(AG79,Таблица1!$E$4:$F$77,2,FALSE))) -> Деталь 73 | AC79: . | AG79: =IF(ISNA(VLOOKUP(G79,Таблица1!$D$4:$F$77,2,FALSE)),"",(VLOOKUP(G79,Таблица1!$D$4:$F$77,2,FALSE))) -> 110.04 | AH79: 1 | AI79: 101010
G80: 8.05 | H80: =IF(ISNA(VLOOKUP(AG80,Таблица1!$E$4:$F$77,2,FALSE)),"",(VLOOKUP(AG80,Таблица1!$E$4:$F$77,2,FALSE))) -> Деталь 74 | AC80: . | AG80: =IF(ISNA(VLOOKUP(G80,Таблица1!$D$4:$F$77,2,FALSE)),"",(VLOOKUP(G80,Таблица1!$D$4:$F$77,2,FALSE))) -> 110.05 | AH80: 1 | AI80: 101010
G81: 8.06 | H81: =IF(ISNA(VLOOKUP(AG81,Таблица1!$E$4:$F$77,2,FALSE)),"",(VLOOKUP(AG81,Таблица1!$E$4:$F$77,2,FALSE))) ->  | AG81: =IF(ISNA(VLOOKUP(G81,Таблица1!$D$4:$F$77,2,FALSE)),"",(VLOOKUP(G81,Таблица1!$D$4:$F$77,2,FALSE))) ->  | AH81: 0
G82: 8.07 | H82: =IF(ISNA(VLOOKUP(AG82,Таблица1!$E$4:$F$77,2,FALSE)),"",(VLOOKUP(AG82,Таблица1!$E$4:$F$77,2,FALSE))) ->  | AG82: =IF(ISNA(VLOOKUP(G82,Таблица1!$D$4:$F$77,2,FALSE)),"",(VLOOKUP(G82,Таблица1!$D$4:$F$77,2,FALSE))) ->  | AH82: 0
G83: 8.08 | H83: =IF(ISNA(VLOOKUP(AG83,Таблица1!$E$4:$F$77,2,FALSE)),"",(VLOOKUP(AG83,Таблица1!$E$4:$F$77,2,FALSE))) ->  | AG83: =IF(ISNA(VLOOKUP(G83,Таблица1!$D$4:$F$77,2,FALSE)),"",(VLOOKUP(G83,Таблица1!$D$4:$F$77,2,FALSE))) ->  | AH83: 0
G84: 8.09 | H84: =IF(ISNA(VLOOKUP(AG84,Таблица1!$E$4:$F$77,2,FALSE)),"",(VLOOKUP(AG84,Таблица1!$E$4:$F$77,2,FALSE))) ->  | AG84: =IF(ISNA(VLOOKUP(G84,Таблица1!$D$4:$F$77,2,FALSE)),"",(VLOOKUP(G84,Таблица1!$D$4:$F$77,2,FALSE))) ->  | AH84: 0
G85: 8.1 | H85: =IF(ISNA(VLOOKUP(AG85,Таблица1!$E$4:$F$77,2,FALSE)),"",(VLOOKUP(AG85,Таблица1!$E$4:$F$77,2,FALSE))) ->  | AG85: =IF(ISNA(VLOOKUP(G85,Таблица1!$D$4:$F$77,2,FALSE)),"",(VLOOKUP(G85,Таблица1!$D$4:$F$77,2,FALSE))) ->  | AH85: 0
B86: 9 | C86: =IF(ISNA(VLOOKUP(B86,Таблица1!$A$4:$B$77,2,FALSE)),"",(VLOOKUP(B86,Таблица1!$A$4:$B$77,2,FALSE))) ->  | D86: =IF(ISNA(VLOOKUP(B86,Таблица1!$A$4:$C$77,3,FALSE)),"",(VLOOKUP(B86,Таблица1!$A$4:$C$77,3,FALSE))) ->  | G86: 9.01 | H86: =IF(ISNA(VLOOKUP(AG86,Таблица1!$E$4:$F$77,2,FALSE)),"",(VLOOKUP(AG86,Таблица1!$E$4:$F$77,2,FALSE))) ->  | AG86: =IF(ISNA(VLOOKUP(G86,Таблица1!$D$4:$F$77,2,FALSE)),"",(VLOOKUP(G86,Таблица1!$D$4:$F$77,2,FALSE))) ->  | AH86: 0
G87: 9.02 | H87: =IF(ISNA(VLOOKUP(AG87,Таблица1!$E$4:$F$77,2,FALSE)),"",(VLOOKUP(AG87,Таблица1!$E$4:$F$77,2,FALSE))) ->  | AG87: =IF(ISNA(VLOOKUP(G87,Таблица1!$D$4:$F$77,2,FALSE)),"",(VLOOKUP(G87,Таблица1!$D$4:$F$77,2,FALSE))) ->  | AH87: 0
G88: 9.03 | H88: =IF(ISNA(VLOOKUP(AG88,Таблица1!$E$4:$F$77,2,FALSE)),"",(VLOOKUP(AG88,Таблица1!$E$4:$F$77,2,FALSE))) ->  | AG88: =IF(ISNA(VLOOKUP(G88,Таблица1!$D$4:$F$77,2,FALSE)),"",(VLOOKUP(G88,Таблица1!$D$4:$F$77,2,FALSE))) ->  | AH88: 0
G89: 9.04 | H89: =IF(ISNA(VLOOKUP(AG89,Таблица1!$E$4:$F$77,2,FALSE)),"",(VLOOKUP(AG89,Таблица1!$E$4:$F$77,2,FALSE))) ->  | AG89: =IF(ISNA(VLOOKUP(G89,Таблица1!$D$4:$F$77,2,FALSE)),"",(VLOOKUP(G89,Таблица1!$D$4:$F$77,2,FALSE))) ->  | AH89: 0
G90: 9.05 | H90: =IF(ISNA(VLOOKUP(AG90,Таблица1!$E$4:$F$77,2,FALSE)),"",(VLOOKUP(AG90,Таблица1!$E$4:$F$77,2,FALSE))) ->  | AG90: =IF(ISNA(VLOOKUP(G90,Таблица1!$D$4:$F$77,2,FALSE)),"",(VLOOKUP(G90,Таблица1!$D$4:$F$77,2,FALSE))) ->  | AH90: 0
G91: 9.06 | H91: =IF(ISNA(VLOOKUP(AG91,Таблица1!$E$4:$F$77,2,FALSE)),"",(VLOOKUP(AG91,Таблица1!$E$4:$F$77,2,FALSE))) ->  | AG91: =IF(ISNA(VLOOKUP(G91,Таблица1!$D$4:$F$77,2,FALSE)),"",(VLOOKUP(G91,Таблица1!$D$4:$F$77,2,FALSE))) ->  | AH91: 0
G92: 9.07 | H92: =IF(ISNA(VLOOKUP(AG92,Таблица1!$E$4:$F$77,2,FALSE)),"",(VLOOKUP(AG92,Таблица1!$E$4:$F$77,2,FALSE))) ->  | AG92: =IF(ISNA(VLOOKUP(G92,Таблица1!$D$4:$F$77,2,FALSE)),"",(VLOOKUP(G92,Таблица1!$D$4:$F$77,2,FALSE))) ->  | AH92: 0
G93: 9.08 | H93: =IF(ISNA(VLOOKUP(AG93,Таблица1!$E$4:$F$77,2,FALSE)),"",(VLOOKUP(AG93,Таблица1!$E$4:$F$77,2,FALSE))) ->  | AG93: =IF(ISNA(VLOOKUP(G93,Таблица1!$D$4:$F$77,2,FALSE)),"",(VLOOKUP(G93,Таблица1!$D$4:$F$77,2,FALSE))) ->  | AH93: 0
G94: 9.09 | H94: =IF(ISNA(VLOOKUP(AG94,Таблица1!$E$4:$F$77,2,FALSE)),"",(VLOOKUP(AG94,Таблица1!$E$4:$F$77,2,FALSE))) ->  | AG94: =IF(ISNA(VLOOKUP(G94,Таблица1!$D$4:$F$77,2,FALSE)),"",(VLOOKUP(G94,Таблица1!$D$4:$F$77,2,FALSE))) ->  | AH94: 0
G95: 9.1 | H95: =IF(ISNA(VLOOKUP(AG95,Таблица1!$E$4:$F$77,2,FALSE)),"",(VLOOKUP(AG95,Таблица1!$E$4:$F$77,2,FALSE))) ->  | AG95: =IF(ISNA(VLOOKUP(G95,Таблица1!$D$4:$F$77,2,FALSE)),"",(VLOOKUP(G95,Таблица1!$D$4:$F$77,2,FALSE))) ->  | AH95: 0
B96: 10 | C96: =IF(ISNA(VLOOKUP(B96,Таблица1!$A$4:$B$77,2,FALSE)),"",(VLOOKUP(B96,Таблица1!$A$4:$B$77,2,FALSE))) ->  | D96: =IF(ISNA(VLOOKUP(B96,Таблица1!$A$4:$C$77,3,FALSE)),"",(VLOOKUP(B96,Таблица1!$A$4:$C$77,3,FALSE))) ->  | G96: 10.01 | H96: =IF(ISNA(VLOOKUP(AG96,Таблица1!$E$4:$F$77,2,FALSE)),"",(VLOOKUP(AG96,Таблица1!$E$4:$F$77,2,FALSE))) ->  | AG96: =IF(ISNA(VLOOKUP(G96,Таблица1!$D$4:$F$77,2,FALSE)),"",(VLOOKUP(G96,Таблица1!$D$4:$F$77,2,FALSE))) ->  | AH96: 0
G97: 10.02 | H97: =IF(ISNA(VLOOKUP(AG97,Таблица1!$E$4:$F$77,2,FALSE)),"",(VLOOKUP(AG97,Таблица1!$E$4:$F$77,2,FALSE))) ->  | AG97: =IF(ISNA(VLOOKUP(G97,Таблица1!$D$4:$F$77,2,FALSE)),"",(VLOOKUP(G97,Таблица1!$D$4:$F$77,2,FALSE))) ->  | AH97: 0
G98: 10.03 | H98: =IF(ISNA(VLOOKUP(AG98,Таблица1!$E$4:$F$77,2,FALSE)),"",(VLOOKUP(AG98,Таблица1!$E$4:$F$77,2,FALSE))) ->  | AG98: =IF(ISNA(VLOOKUP(G98,Таблица1!$D$4:$F$77,2,FALSE)),"",(VLOOKUP(G98,Таблица1!$D$4:$F$77,2,FALSE))) ->  | AH98: 0
G99: 10.04 | H99: =IF(ISNA(VLOOKUP(AG99,Таблица1!$E$4:$F$77,2,FALSE)),"",(VLOOKUP(AG99,Таблица1!$E$4:$F$77,2,FALSE))) ->  | AG99: =IF(ISNA(VLOOKUP(G99,Таблица1!$D$4:$F$77,2,FALSE)),"",(VLOOKUP(G99,Таблица1!$D$4:$F$77,2,FALSE))) ->  | AH99: 0
G100: 10.05 | H100: =IF(ISNA(VLOOKUP(AG100,Таблица1!$E$4:$F$77,2,FALSE)),"",(VLOOKUP(AG100,Таблица1!$E$4:$F$77,2,FALSE))) ->  | AG100: =IF(ISNA(VLOOKUP(G100,Таблица1!$D$4:$F$77,2,FALSE)),"",(VLOOKUP(G100,Таблица1!$D$4:$F$77,2,FALSE))) ->  | AH100: 0
G101: 10.06 | H101: =IF(ISNA(VLOOKUP(AG101,Таблица1!$E$4:$F$77,2,FALSE)),"",(VLOOKUP(AG101,Таблица1!$E$4:$F$77,2,FALSE))) ->  | AG101: =IF(ISNA(VLOOKUP(G101,Таблица1!$D$4:$F$77,2,FALSE)),"",(VLOOKUP(G101,Таблица1!$D$4:$F$77,2,FALSE))) ->  | AH101: 0
G102: 10.07 | H102: =IF(ISNA(VLOOKUP(AG102,Таблица1!$E$4:$F$77,2,FALSE)),"",(VLOOKUP(AG102,Таблица1!$E$4:$F$77,2,FALSE))) ->  | AG102: =IF(ISNA(VLOOKUP(G102,Таблица1!$D$4:$F$77,2,FALSE)),"",(VLOOKUP(G102,Таблица1!$D$4:$F$77,2,FALSE))) ->  | AH102: 0
G103: 10.08 | H103: =IF(ISNA(VLOOKUP(AG103,Таблица1!$E$4:$F$77,2,FALSE)),"",(VLOOKUP(AG103,Таблица1!$E$4:$F$77,2,FALSE))) ->  | AG103: =IF(ISNA(VLOOKUP(G103,Таблица1!$D$4:$F$77,2,FALSE)),"",(VLOOKUP(G103,Таблица1!$D$4:$F$77,2,FALSE))) ->  | AH103: 0
G104: 10.09 | H104: =IF(ISNA(VLOOKUP(AG104,Таблица1!$E$4:$F$77,2,FALSE)),"",(VLOOKUP(AG104,Таблица1!$E$4:$F$77,2,FALSE))) ->  | AG104: =IF(ISNA(VLOOKUP(G104,Таблица1!$D$4:$F$77,2,FALSE)),"",(VLOOKUP(G104,Таблица1!$D$4:$F$77,2,FALSE))) ->  | AH104: 0
G105: 10.1 | H105: =IF(ISNA(VLOOKUP(AG105,Таблица1!$E$4:$F$77,2,FALSE)),"",(VLOOKUP(AG105,Таблица1!$E$4:$F$77,2,FALSE))) ->  | AG105: =IF(ISNA(VLOOKUP(G105,Таблица1!$D$4:$F$77,2,FALSE)),"",(VLOOKUP(G105,Таблица1!$D$4:$F$77,2,FALSE))) ->  | AH105: 0

Sheet вспомог лист
A1: 101.02 | B1: 2 | C1: 20
A2: 101.03 | B2: 3 | C2: 20
A3: 101.04 | B3: 4 | C3: 20
A4: 101.05 | B4: 0 | C4: 20
B5: 0
B6: 0
B7: 0
B8: 0
B9: 0
B10: 0
A11: 102.07 | B11: 2 | C11: 30
A12: 102.08 | B12: 3 | C12: 30
A13: 102.09 | B13: 2 | C13: 30
A14: 102.1 | B14: 1 | C14: 30
B15: 0
B16: 0
B17: 0
B18: 0
B19: 0
B20: 0
A21: 103.08 | B21: 3 | C21: 500
A22: 103.09 | B22: 4 | C22: 500
B23: 0
B24: 0
B25: 0
B26: 0
B27: 0
B28: 0
B29: 0
B30: 0
A31: 106.01 | B31: 0
A32: 106.02 | B32: 0
A33: 106.04 | B33: 0
A34: 106.05 | B34: 0
A35: 106.06 | B35: 0
B36: 0
B37: 0
B38: 0
B39: 0
B40: 0
A41: 107.04 | B41: 0
A42: 107.05 | B42: 0
A43: 107.07 | B43: 0
B44: 0
B45: 0
B46: 0
B47: 0
B48: 0
B49: 0
B50: 0
A51: 108.01 | B51: 0
A52: 108.03 | B52: 0
A53: 108.04 | B53: 0
B54: 0
B55: 0
B56: 0
B57: 0
B58: 0
B59: 0
B60: 0
A61: 109.01 | B61: 0
A62: 109.02 | B62: 0
B63: 0
B64: 0
B65: 0
B66: 0
B67: 0
B68: 0
B69: 0
B70: 0
A71: 110.01 | B71: 1 | C71: 101010
A72: 110.02 | B72: 3 | C72: 101010
A73: 110.03 | B73: 2 | C73: 101010
A74: 110.04 | B74: 1 | C74: 101010
A75: 110.05 | B75: 1 | C75: 101010
B76: 0
B77: 0
B78: 0
B79: 0
B80: 0
B81: 0
B82: 0
B83: 0
B84: 0
B85: 0
B86: 0
B87: 0
B88: 0
B89: 0
B90: 0
B91: 0
B92: 0
B93: 0
B94: 0
B95: 0
B96: 0
B97: 0
B98: 0
B99: 0
B100: 0
